bitfinex/quotes_BTCUSD_20240715
["timestamp","ask_amount","ask_price","bid_price","bid_amount"]
[1721081252293,0.25718647,63848.0,63847.0,0.78312]
[1721081252518,0.25718647,63848.0,63847.0,0.469872]
[1721081252742,0.31369472,63848.0,63847.0,0.156624]
[1721081253572,0.31369472,63848.0,63847.0,0.469872]
[1721081253820,0.25718647,63848.0,63847.0,0.469872]
[1721081254041,0.25718647,63848.0,63847.0,0.472872]
[1721081254661,0.25718647,63848.0,63847.0,0.481872]
[1721081254867,0.25718647,63848.0,63847.0,0.79512]
[1721081255097,0.21456141,63848.0,63847.0,0.79512]
[1721081255330,0.13599552,63848.0,63847.0,1.17185975]
[1721081255535,0.07079552,63848.0,63847.0,1.17185975]
[1721081255742,0.05828463,63848.0,63847.0,1.17185975]
[1721081255956,0.05828357,63848.0,63847.0,0.012]
[1721081256167,0.05908008,63851.0,63850.0,0.313234]
[1721081256385,4e-05,63853.0,63852.0,0.78306]
[1721081256614,4e-05,63853.0,63852.0,1.096284]
[1721081257029,0.04266506,63853.0,63852.0,0.78306]
[1721081257233,0.0591104,63853.0,63852.0,0.78306]
[1721081257677,0.0591104,63853.0,63852.0,1.409508]
[1721081258083,4e-05,63853.0,63852.0,1.409508]
[1721081258295,4e-05,63853.0,63852.0,0.78306]
[1721081258499,4e-05,63853.0,63852.0,1.106284]
[1721081258701,4e-05,63853.0,63852.0,1.120284]
[1721081258909,4e-05,63853.0,63852.0,1.106284]
[1721081259112,4e-05,63853.0,63852.0,1.096284]
[1721081259113,0.14474,63853.0,63852.0,1.096284]
[1721081259286,0.07211614,63853.0,63852.0,1.18377575]
[1721081259705,0.07211614,63853.0,63852.0,1.16977575]
[1721081259928,0.07211614,63853.0,63852.0,1.120284]
[1721081260353,0.05966496,63853.0,63852.0,1.120284]
[1721081260562,4e-05,63853.0,63852.0,1.120284]
[1721081260727,4e-05,63853.0,63852.0,1.17377575]
[1721081260994,4e-05,63853.0,63852.0,1.18377575]
[1721081261167,4e-05,63853.0,63852.0,1.49699975]
[1721081261338,4e-05,63853.0,63852.0,1.48299975]
[1721081261795,4e-05,63853.0,63852.0,1.49699975]
[1721081262004,4e-05,63853.0,63852.0,1.48699975]
[1721081262380,4e-05,63853.0,63852.0,1.49899975]
[1721081263661,4e-05,63853.0,63852.0,1.435508]
[1721081263836,4e-05,63853.0,63852.0,1.122284]
[1721081263837,0.10786506,63853.0,63852.0,1.122284]
[1721081264073,0.16715473,63853.0,63852.0,1.122284]
[1721081264273,0.13706012,63853.0,63852.0,1.122284]
[1721081264628,0.13596093,63853.0,63852.0,1.122284]
[1721081266161,0.01257045,63853.0,63852.0,1.18577575]
[1721081266573,4e-05,63853.0,63852.0,1.18577575]
[1721081267317,4e-05,63853.0,63852.0,1.33037575]
[1721081267520,4e-05,63853.0,63852.0,2.13719869]
[1721081268387,4e-05,63853.0,63852.0,2.12519869]
[1721081268607,4e-05,63853.0,63852.0,2.12329869]
[1721081268820,4e-05,63853.0,63852.0,2.13729869]
[1721081269058,4e-05,63853.0,63852.0,2.3374166]
[1721081269236,4e-05,63853.0,63852.0,2.6506406]
[1721081269446,4e-05,63853.0,63852.0,2.6646406]
[1721081269648,4e-05,63853.0,63852.0,2.59377391]
[1721081270044,4e-05,63853.0,63852.0,2.6646406]
[1721081270514,4e-05,63853.0,63852.0,2.59377391]
[1721081270717,4e-05,63853.0,63852.0,2.6506406]
[1721081271149,4e-05,63853.0,63852.0,2.57977391]
[1721081271969,0.00087,63859.0,63858.0,1.772567]
[1721081272177,0.00087,63859.0,63858.0,1.971667]
[1721081272576,0.00087,63859.0,63858.0,2.221767]
[1721081273001,0.00087,63859.0,63858.0,2.43388491]
[1721081273206,0.04677795,63876.0,63858.0,2.43388491]
[1721081273207,0.04677795,63877.0,63866.0,0.22006875]
[1721081273460,0.04262506,63878.0,63866.0,0.60364369]
[1721081273663,0.04262506,63878.0,63866.0,0.72664369]
[1721081273874,0.04262506,63878.0,63866.0,0.719177]
[1721081274098,0.04262506,63878.0,63866.0,1.971797]
[1721081274504,0.04262506,63878.0,63866.0,2.03528875]
[1721081274888,0.04262506,63878.0,63866.0,1.985797]
[1721081275088,0.04262506,63878.0,63866.0,2.06328875]
[1721081276257,0.04262506,63878.0,63866.0,1.999797]
[1721081276706,0.04262506,63877.0,63866.0,2.06328875]
[1721081276911,0.04262506,63877.0,63866.0,1.99988875]
[1721081276912,0.082,63877.0,63866.0,1.99988875]
[1721081277065,0.082,63877.0,63866.0,1.97688875]
[1721081277266,0.12462506,63877.0,63866.0,1.97688875]
[1721081277495,0.082,63877.0,63866.0,1.97688875]
[1721081278473,0.082,63877.0,63866.0,1.98426369]
[1721081278671,0.001487,63879.0,63866.0,2.29741869]
[1721081278918,0.04262506,63878.0,63866.0,2.32041869]
[1721081279123,0.05799525,63879.0,63866.0,2.32041869]
[1721081279124,0.001487,63879.0,63866.0,2.32041869]
[1721081279319,0.001487,63879.0,63866.0,2.4825366]
[1721081279582,0.001487,63879.0,63866.0,2.83822491]
[1721081279741,0.001487,63879.0,63866.0,2.8950916]
[1721081279951,0.001487,63879.0,63866.0,2.82422491]
[1721081280143,0.001487,63879.0,63866.0,2.9090916]
[1721081280564,0.001487,63879.0,63866.0,2.8950916]
[1721081280965,0.001487,63879.0,63866.0,2.9090916]
[1721081281365,0.001487,63879.0,63866.0,2.88771666]
[1721081281537,0.001487,63879.0,63866.0,2.87371666]
[1721081281754,0.001487,63879.0,63866.0,2.41244375]
[1721081282122,0.001487,63879.0,63866.0,2.43381869]
[1721081282307,0.001487,63879.0,63866.0,2.41981869]
[1721081282956,0.001487,63879.0,63866.0,2.40581869]
[1721081283165,0.001487,63879.0,63866.0,2.41981869]
[1721081283396,0.08105238,63873.0,63866.0,1.83678875]
[1721081283612,0.08105238,63873.0,63866.0,1.82278875]
[1721081283817,0.0635,63872.0,63866.0,1.88678875]
[1721081284020,0.0635,63872.0,63866.0,1.88688875]
[1721081284257,0.0635,63872.0,63866.0,1.83688875]
[1721081284460,0.0635,63872.0,63866.0,1.87288875]
[1721081284663,0.0635,63872.0,63866.0,1.82288875]
[1721081284840,0.0635,63872.0,63866.0,1.83688875]
[1721081285595,0.0635,63872.0,63866.0,1.85088875]
[1721081286527,0.0635,63872.0,63866.0,1.474242]
[1721081286894,0.0635,63872.0,63866.0,1.53773375]
[1721081287689,0.0635,63872.0,63866.0,1.85088875]
[1721081288360,0.08105238,63871.0,63866.0,1.85088875]
[1721081288570,0.08105238,63871.0,63866.0,1.787397]
[1721081289113,0.08105238,63871.0,63866.0,1.85088875]
[1721081289315,0.08105238,63871.0,63866.0,1.85826369]
[1721081289582,0.08105238,63871.0,63866.0,1.85088875]
[1721081289880,0.001487,63879.0,63866.0,1.92346369]
[1721081289881,0.0663,63876.0,63866.0,1.92346369]
[1721081290419,0.0663,63876.0,63866.0,1.99646369]
[1721081291142,0.0663,63876.0,63866.0,1.98908875]
[1721081291476,0.0663,63876.0,63866.0,1.99646369]
[1721081291675,0.0796,63878.0,63866.0,1.99646369]
[1721081291944,0.001487,63879.0,63866.0,2.30961869]
[1721081292153,0.001487,63879.0,63866.0,2.5217366]
[1721081292479,0.001487,63879.0,63866.0,2.6017366]
[1721081292653,0.08253938,63879.0,63866.0,2.6017366]
[1721081293081,0.0081799,63867.0,63866.0,2.5737366]
[1721081293320,0.0081799,63867.0,63866.0,2.5877366]
[1721081293526,0.0081799,63867.0,63866.0,2.10508875]
[1721081293919,0.0081799,63867.0,63866.0,2.06908875]
[1721081294129,0.0081799,63867.0,63866.0,2.11908875]
[1721081294285,0.0081799,63867.0,63866.0,2.09108875]
[1721081294672,0.0081799,63867.0,63866.0,2.10508875]
[1721081295073,0.0081799,63867.0,63866.0,1.773397]
[1721081295286,0.0735799,63867.0,63866.0,0.796987]
[1721081295494,0.24208712,63867.0,63866.0,0.796987]
[1721081295690,0.24208712,63867.0,63866.0,0.810987]
[1721081295691,0.2420907,63867.0,63866.0,0.810987]
[1721081296097,0.4778657,63867.0,63866.0,0.0001]
[1721081296317,0.95774695,63867.0,63866.0,0.0001]
[1721081296516,1.10431283,63867.0,63866.0,0.0141]
[1721081296711,0.67116283,63867.0,63866.0,0.0141]
[1721081296978,0.51458783,63867.0,63866.0,0.170677]
[1721081297089,0.60810128,63867.0,63866.0,0.184677]
[1721081297301,0.60809959,63867.0,63866.0,0.0141]
[1721081297506,0.7514803,63867.0,63866.0,0.0001]
[1721081297698,0.67116283,63867.0,63866.0,0.0001]
[1721081298017,0.51458783,63867.0,63866.0,0.0001]
[1721081298344,0.67116283,63867.0,63866.0,0.0001]
[1721081298551,0.79116283,63867.0,63866.0,0.0001]
[1721081298745,1.10003203,63867.0,63866.0,0.0001]
[1721081298945,1.10003203,63867.0,63866.0,0.00206]
[1721081299182,0.85218031,63867.0,63866.0,0.00206]
[1721081299442,1.41269313,63867.0,63866.0,0.00206]
[1721081299605,1.09954313,63867.0,63866.0,0.00206]
[1721081299810,1.09954313,63867.0,63866.0,6e-05]
[1721081300210,1.09954313,63867.0,63866.0,0.00206]
[1721081300412,1.25989182,63867.0,63866.0,0.00206]
[1721081300641,1.40031129,63867.0,63866.0,0.00206]
[1721081300844,1.57304182,63867.0,63866.0,0.00206]
[1721081301070,1.25989182,63867.0,63866.0,0.00206]
[1721081301990,1.2602809,63867.0,63866.0,6e-05]
[1721081302115,1.57156739,63867.0,63866.0,6e-05]
[1721081302325,1.93471739,63867.0,63866.0,0.00206]
[1721081302524,2.09270848,63867.0,63866.0,0.00206]
[1721081302726,2.08471739,63867.0,63866.0,0.00097075]
[1721081302928,2.08471739,63867.0,63848.0,0.15662]
[1721081302929,0.16253331,63849.0,63848.0,0.15662]
[1721081303147,0.09903331,63847.0,63846.0,0.31631653]
[1721081303348,0.16839918,63847.0,63846.0,0.31631653]
[1721081303551,0.15870658,63847.0,63846.0,0.469879]
[1721081303744,0.15870658,63847.0,63846.0,0.783132]
[1721081303745,0.06936587,63847.0,63846.0,0.783132]
[1721081304045,0.11189093,63847.0,63846.0,1.096385]
[1721081304452,0.11189093,63847.0,63846.0,0.469879]
[1721081304453,0.15806711,63847.0,63846.0,0.469879]
[1721081304656,0.14837451,63847.0,63846.0,0.469879]
[1721081304856,0.0528445,63847.0,63846.0,0.469879]
[1721081305222,0.14583665,63847.0,63846.0,0.469879]
[1721081305423,0.10192676,63847.0,63846.0,0.469879]
[1721081305547,0.1122462,63847.0,63846.0,0.469879]
[1721081305949,0.0528445,63847.0,63846.0,0.797132]
[1721081306157,0.0528445,63847.0,63846.0,0.497879]
[1721081306381,0.16243331,63849.0,63848.0,0.469864]
[1721081306580,0.22270684,63849.0,63848.0,0.469864]
[1721081306791,0.23303433,63849.0,63848.0,0.469864]
[1721081307430,0.27973767,63849.0,63848.0,0.469864]
[1721081307632,0.28073767,63849.0,63848.0,0.483864]
[1721081307843,0.23393433,63849.0,63848.0,0.483864]
[1721081308045,0.1736608,63849.0,63848.0,0.483864]
[1721081308260,0.28070931,63849.0,63848.0,0.483864]
[1721081308461,0.23393197,63849.0,63848.0,0.483864]
[1721081308869,0.23393197,63849.0,63848.0,0.497864]
[1721081311508,0.23377025,63849.0,63848.0,0.497864]
[1721081311740,0.23367025,63849.0,63848.0,0.497864]
[1721081311954,0.23367081,63849.0,63848.0,0.497864]
[1721081314546,0.1735608,63849.0,63848.0,0.497864]
[1721081314777,0.23408646,63849.0,63848.0,0.497864]
[1721081315239,0.13505315,63849.0,63848.0,0.497864]
[1721081315477,0.23408646,63849.0,63848.0,0.811107]
[1721081315970,0.23408646,63849.0,63848.0,0.811207]
[1721081316695,0.07185315,63849.0,63848.0,1.12445]
[1721081316924,0.001,63849.0,63848.0,1.12445]
[1721081317366,0.001,63849.0,63848.0,1.50118475]
[1721081318023,0.001,63849.0,63848.0,1.74628475]
[1721081321436,0.001,63849.0,63848.0,1.75375969]
[1721081321634,0.001,63849.0,63848.0,1.74628475]
[1721081323017,0.001,63849.0,63848.0,2.06700269]
[1721081324277,0.001,63849.0,63848.0,2.04552775]
[1721081324490,0.04252506,63863.0,63862.0,1.096112]
[1721081324719,0.10258094,63863.0,63862.0,1.096112]
[1721081324905,0.10967102,63863.0,63862.0,1.096112]
[1721081325463,0.06714596,63863.0,63862.0,1.47277875]
[1721081325866,0.06005589,63863.0,63862.0,1.47277875]
[1721081326069,0.0081799,63867.0,63866.0,0.156577]
[1721081326272,0.0081799,63867.0,63866.0,0.469732]
[1721081326484,0.07529372,63867.0,63866.0,1.096042]
[1721081327539,0.11809783,63867.0,63866.0,1.096042]
[1721081327656,0.07557277,63867.0,63866.0,1.096042]
[1721081327865,0.07557277,63867.0,63866.0,1.108042]
[1721081329111,0.17460608,63867.0,63866.0,1.114042]
[1721081329524,0.11809783,63867.0,63866.0,1.114042]
[1721081329740,0.25579783,63867.0,63866.0,1.114042]
[1721081330266,0.07557277,63867.0,63866.0,1.17753375]
[1721081330665,0.06909131,63867.0,63866.0,1.114042]
[1721081332129,0.06909131,63867.0,63866.0,1.59068875]
[1721081332338,0.0695752,63867.0,63866.0,1.59068875]
[1721081332518,0.0081799,63867.0,63866.0,1.59068875]
[1721081333827,0.0081799,63867.0,63866.0,1.88584375]
[1721081334143,0.0081799,63867.0,63866.0,1.91284375]
[1721081334309,0.0081799,63867.0,63866.0,1.94624375]
[1721081334710,0.0081799,63867.0,63866.0,1.97424375]
[1721081334913,0.0081799,63867.0,63866.0,1.98171869]
[1721081335089,0.0081799,63867.0,63866.0,1.96771869]
[1721081335295,0.0081799,63867.0,63866.0,2.05001869]
[1721081335493,0.0081799,63867.0,63866.0,2.06401869]
[1721081336080,0.0081799,63867.0,63866.0,2.10001869]
[1721081336284,0.0081799,63867.0,63866.0,2.079052]
[1721081336489,0.0081799,63867.0,63866.0,2.18701869]
[1721081336694,0.0081799,63867.0,63866.0,2.17301869]
[1721081337098,0.0081799,63867.0,63866.0,2.16554375]
[1721081337354,0.0081799,63867.0,63866.0,2.17954375]
[1721081337571,0.0081799,63867.0,63866.0,2.16554375]
[1721081338270,0.0081799,63867.0,63866.0,2.17954375]
[1721081339309,0.0081799,63867.0,63866.0,2.102052]
[1721081339765,0.0081799,63867.0,63866.0,2.17301869]
[1721081340348,0.0081799,63867.0,63866.0,2.3491366]
[1721081340548,0.001487,63879.0,63878.0,1.47242375]
[1721081340815,0.00876591,63879.0,63878.0,2.5479126]
[1721081341025,0.00876591,63879.0,63878.0,2.5709126]
[1721081341215,0.001487,63879.0,63878.0,2.5709126]
[1721081341542,0.001487,63879.0,63878.0,2.8840086]
[1721081342136,2.00004,63880.0,63879.0,0.17096669]
[1721081342337,2.00004,63880.0,63879.0,2.62786419]
[1721081342338,0.62064,63880.0,63879.0,2.62786419]
[1721081342635,0.62064,63880.0,63879.0,2.87796419]
[1721081342842,0.62064,63880.0,63879.0,2.87490066]
[1721081343371,0.62064,63880.0,63879.0,2.32669175]
[1721081343615,0.62064,63880.0,63879.0,2.07659175]
[1721081343772,0.62064,63880.0,63879.0,2.14806669]
[1721081344058,0.62064,63880.0,63879.0,2.15706669]
[1721081344251,0.62064,63880.0,63879.0,1.664009]
[1721081344370,0.62064,63880.0,63879.0,1.74150075]
[1721081344570,0.62064,63880.0,63879.0,1.64750075]
[1721081345017,0.62064,63880.0,63879.0,1.522909]
[1721081345221,0.62064,63880.0,63879.0,1.63640075]
[1721081345556,0.62064,63880.0,63879.0,1.58640075]
[1721081345766,0.62064,63880.0,63879.0,1.63640075]
[1721081346234,0.62064,63880.0,63879.0,1.60040075]
[1721081346454,0.62064,63880.0,63879.0,1.65040075]
[1721081346609,0.62064,63880.0,63879.0,1.60040075]
[1721081346810,0.62064,63880.0,63879.0,1.65040075]
[1721081347035,0.62064,63880.0,63879.0,1.60040075]
[1721081347849,0.62064,63880.0,63879.0,1.536909]
[1721081348196,0.62064,63880.0,63879.0,1.123818]
[1721081348197,0.75994,63880.0,63879.0,1.123818]
[1721081349102,0.75994,63880.0,63879.0,1.109818]
[1721081349221,0.75994,63880.0,63879.0,1.095818]
[1721081349421,0.75994,63880.0,63879.0,1.195818]
[1721081349665,0.62064,63880.0,63879.0,1.21330975]
[1721081349860,0.62064,63880.0,63879.0,1.522909]
[1721081350038,0.62064,63880.0,63879.0,1.58640075]
[1721081350467,0.62064,63880.0,63879.0,1.209818]
[1721081350669,0.62064,63880.0,63879.0,0.483636]
[1721081350670,0.68134,63880.0,63879.0,0.483636]
[1721081350846,0.85897331,63880.0,63879.0,0.796727]
[1721081351195,1.5077939,63880.0,63879.0,0.028]
[1721081351398,1.3877939,63880.0,63879.0,0.028]
[1721081351612,1.15575928,63880.0,63879.0,0.014]
[1721081352025,1.15575928,63880.0,63879.0,0.0085961]
[1721081352026,1.318831,63880.0,63879.0,0.0085961]
[1721081352226,1.16179139,63880.0,63879.0,0.0225961]
[1721081352465,1.04539326,63880.0,63879.0,0.0225961]
[1721081352667,0.99873585,63880.0,63879.0,0.0085961]
[1721081352840,1.28178952,63880.0,63879.0,0.0085961]
[1721081353040,0.85943585,63880.0,63878.0,0.0001]
[1721081353242,0.24866806,63879.0,63878.0,0.0001]
[1721081353443,0.34770137,63879.0,63878.0,0.0001]
[1721081353851,0.46770917,63879.0,63878.0,0.0001]
[1721081354054,0.96065697,63879.0,63878.0,0.0001]
[1721081354255,1.39696628,63879.0,63878.0,0.0001]
[1721081354439,1.82668644,63879.0,63878.0,0.0001]
[1721081354641,1.39696628,63879.0,63878.0,0.0051]
[1721081354836,1.08387528,63879.0,63878.0,0.0051]
[1721081355043,0.93195305,63879.0,63878.0,0.0001]
[1721081355240,0.76914475,63879.0,63878.0,0.0001]
[1721081356326,0.76914475,63879.0,63878.0,0.0011]
[1721081356327,1.39732675,63879.0,63878.0,0.0011]
[1721081356506,1.39732675,63879.0,63878.0,0.0051]
[1721081356846,1.39732675,63879.0,63878.0,0.0011]
[1721081357050,1.51706557,63879.0,63878.0,0.0011]
[1721081357292,1.40032675,63879.0,63878.0,0.0011]
[1721081358061,1.41471071,63879.0,63878.0,0.0001]
[1721081358362,1.41924428,63879.0,63878.0,0.0011]
[1721081358789,1.41524428,63879.0,63878.0,0.0001]
[1721081359201,0.67306228,63879.0,63878.0,0.002013]
[1721081359407,0.79306228,63879.0,63878.0,0.002013]
[1721081359603,1.10315328,63879.0,63878.0,0.002013]
[1721081360120,0.79306228,63879.0,63878.0,0.002013]
[1721081360325,0.79006228,63879.0,63878.0,0.002013]
[1721081360533,0.79306228,63879.0,63878.0,0.002013]
[1721081360738,0.79306228,63879.0,63878.0,0.158561]
[1721081360739,0.54006642,63879.0,63878.0,0.158561]
[1721081360989,0.54006642,63879.0,63878.0,0.002013]
[1721081361192,0.53606642,63879.0,63878.0,0.001013]
[1721081361397,0.50027816,63879.0,63878.0,0.001013]
[1721081361624,0.44942256,63879.0,63878.0,0.002013]
[1721081361747,0.50837119,63879.0,63878.0,0.002013]
[1721081362095,0.50837119,63879.0,63878.0,0.001013]
[1721081362096,0.50442547,63879.0,63878.0,0.001013]
[1721081362272,0.50842547,63879.0,63878.0,0.001013]
[1721081362674,0.50442547,63879.0,63878.0,0.001013]
[1721081362853,0.50142547,63879.0,63878.0,0.001013]
[1721081363055,0.50542547,63879.0,63878.0,0.471657]
[1721081363256,0.62233536,63879.0,63878.0,0.471657]
[1721081363460,0.50542547,63879.0,63878.0,0.470657]
[1721081363681,0.62235216,63879.0,63878.0,0.470657]
[1721081363900,0.62235216,63879.0,63878.0,0.471657]
[1721081364102,0.62235216,63879.0,63878.0,0.470657]
[1721081364304,0.31810963,63879.0,63878.0,1.096849]
[1721081364478,0.22456484,63879.0,63878.0,1.097849]
[1721081364682,0.14558297,63879.0,63878.0,1.097849]
[1721081364927,0.11794586,63879.0,63878.0,1.097849]
[1721081365087,0.1182668,63879.0,63878.0,1.097849]
[1721081365294,0.1182668,63879.0,63878.0,1.096849]
[1721081365496,0.1212668,63879.0,63878.0,1.096849]
[1721081365708,0.07874174,63879.0,63878.0,1.096849]
[1721081365905,0.07574174,63879.0,63878.0,1.096849]
[1721081366311,0.07574174,63879.0,63878.0,1.104849]
[1721081366485,0.07574174,63879.0,63878.0,1.417945]
[1721081366486,0.01638396,63879.0,63878.0,1.417945]
[1721081366686,0.01638396,63879.0,63878.0,1.48043675]
[1721081366897,0.01738396,63879.0,63878.0,1.49243675]
[1721081367322,0.01738396,63879.0,63878.0,1.428945]
[1721081370367,0.01738396,63879.0,63878.0,0.802753]
[1721081370368,0.09843634,63879.0,63878.0,0.802753]
[1721081370572,0.36478389,63879.0,63878.0,0.802753]
[1721081370775,0.29189168,63879.0,63878.0,0.802753]
[1721081370976,0.29189168,63879.0,63878.0,1.115849]
[1721081370977,0.05952713,63879.0,63878.0,1.115849]
[1721081371182,0.05914908,63879.0,63878.0,1.428945]
[1721081371418,0.23923477,63879.0,63878.0,1.115849]
[1721081371615,0.14020146,63879.0,63878.0,1.115849]
[1721081371876,0.18700653,63879.0,63878.0,1.115849]
[1721081372428,0.14020146,63879.0,63878.0,1.115849]
[1721081372787,0.18700653,63879.0,63878.0,1.115849]
[1721081372992,0.14020146,63879.0,63878.0,1.115849]
[1721081373193,0.21038212,63879.0,63878.0,1.115849]
[1721081373992,0.21018212,63879.0,63878.0,1.115849]
[1721081374183,0.12912974,63879.0,63878.0,1.115849]
[1721081374387,0.10576598,63879.0,63878.0,1.115849]
[1721081374520,0.10576598,63879.0,63878.0,1.194049]
[1721081374723,0.05894908,63879.0,63878.0,1.194049]
[1721081374982,0.05912995,63879.0,63878.0,1.194049]
[1721081375443,0.10594581,63879.0,63878.0,1.194049]
[1721081375652,0.05912995,63879.0,63878.0,1.194049]
[1721081375809,0.10594581,63879.0,63878.0,1.194049]
[1721081376413,0.05912995,63879.0,63878.0,1.194049]
[1721081376866,0.10594581,63879.0,63878.0,1.194049]
[1721081377239,0.05912995,63879.0,63878.0,1.25754075]
[1721081377572,0.10595413,63879.0,63878.0,1.256649]
[1721081377769,0.05912995,63879.0,63878.0,1.32014075]
[1721081377975,0.05912995,63879.0,63878.0,1.256649]
[1721081378525,0.10595447,63879.0,63878.0,1.256649]
[1721081380307,0.10165501,63879.0,63878.0,1.194049]
[1721081380460,0.05912995,63879.0,63878.0,1.115849]
[1721081380867,0.07104075,63879.0,63878.0,1.115849]
[1721081381163,0.21015198,63879.0,63878.0,1.115849]
[1721081381549,0.13991123,63879.0,63878.0,1.115849]
[1721081381721,0.34133003,63879.0,63878.0,1.115849]
[1721081382123,0.12910106,63879.0,63878.0,1.115849]
[1721081383949,0.05885885,63879.0,63878.0,1.115849]
[1721081384509,0.12910068,63879.0,63878.0,1.115849]
[1721081384918,0.05885885,63879.0,63878.0,1.115849]
[1721081385065,0.10568686,63879.0,63878.0,1.115849]
[1721081385264,0.05885885,63879.0,63878.0,1.115849]
[1721081385475,0.10138391,63879.0,63878.0,1.115849]
[1721081385628,0.12910068,63879.0,63878.0,1.115849]
[1721081386233,0.17162574,63879.0,63878.0,1.115849]
[1721081386495,0.05885885,63879.0,63878.0,1.115849]
[1721081387239,0.0008,63879.0,63878.0,1.115849]
[1721081387429,0.05895922,63879.0,63878.0,1.115849]
[1721081387631,0.10939864,63879.0,63878.0,1.115849]
[1721081387815,0.12921926,63879.0,63878.0,1.115849]
[1721081388685,0.05895923,63879.0,63878.0,1.115849]
[1721081388890,0.26185494,63879.0,63878.0,1.115849]
[1721081389105,0.16817489,63879.0,63878.0,1.115849]
[1721081390261,0.61236064,63879.0,63878.0,0.802753]
[1721081390464,0.58546183,63879.0,63878.0,0.802753]
[1721081390638,0.58546183,63879.0,63878.0,0.489657]
[1721081390639,0.58524526,63879.0,63878.0,0.489657]
[1721081390844,0.99189026,63879.0,63878.0,0.020013]
[1721081391050,0.65618832,63879.0,63878.0,0.020013]
[1721081391208,0.75522163,63879.0,63878.0,0.020013]
[1721081392007,0.65701832,63879.0,63878.0,0.020013]
[1721081392852,0.91259663,63879.0,63878.0,0.020013]
[1721081393050,1.22568763,63879.0,63878.0,0.020013]
[1721081393257,0.91259663,63879.0,63878.0,0.020013]
[1721081393655,0.89864456,63879.0,63878.0,0.020013]
[1721081393852,0.89864122,63879.0,63878.0,0.020013]
[1721081395477,0.79960791,63879.0,63878.0,0.020013]
[1721081395676,1.01864122,63879.0,63878.0,0.020013]
[1721081395879,0.79960791,63879.0,63878.0,0.020013]
[1721081396236,1.01864122,63879.0,63878.0,0.020013]
[1721081396974,1.80325829,63879.0,63878.0,0.020013]
[1721081397182,1.64496774,63879.0,63878.0,0.020013]
[1721081397332,1.64496774,63879.0,63878.0,0.01272651]
[1721081397701,1.42593443,63879.0,63878.0,0.01272651]
[1721081397910,1.42593443,63879.0,63878.0,0.012]
[1721081398116,1.64496774,63879.0,63878.0,0.012]
[1721081398330,1.64496774,63879.0,63870.0,0.156567]
[1721081398331,0.0812,63873.0,63870.0,0.156567]
[1721081398570,0.41352505,63872.0,63870.0,0.156567]
[1721081398770,0.0812,63873.0,63870.0,0.156567]
[1721081398771,0.41352505,63871.0,63870.0,0.156567]
[1721081398973,0.51255836,63871.0,63870.0,0.156567]
[1721081399314,0.41352505,63871.0,63870.0,0.156567]
[1721081399484,0.51235056,63871.0,63870.0,0.158567]
[1721081400190,0.46781549,63871.0,63870.0,0.002]
[1721081400717,0.68618198,63871.0,63870.0,0.01]
[1721081401085,0.68618198,63871.0,63866.0,0.156576]
[1721081401313,0.24063828,63870.0,63866.0,0.156576]
[1721081401623,0.24063828,63869.0,63866.0,0.156575]
[1721081401841,0.09903331,63867.0,63866.0,0.782885]
[1721081402602,0.14070127,63871.0,63870.0,0.78284]
[1721081402823,0.04252506,63873.0,63870.0,0.78284]
[1721081402824,0.04252506,63873.0,63871.0,0.313131]
[1721081402983,0.04252506,63873.0,63872.0,0.469689]
[1721081403189,0.09903331,63873.0,63872.0,0.782815]
[1721081403591,0.20570127,63877.0,63873.0,0.20849175]
[1721081403592,0.18322633,63877.0,63873.0,0.20849175]
[1721081403818,0.0253854,63879.0,63876.0,0.0986]
[1721081403819,0.00083,63879.0,63876.0,0.0986]
[1721081404019,0.00083,63879.0,63878.0,0.78174]
[1721081404219,0.04335506,63879.0,63878.0,0.78174]
[1721081405141,0.00183,63879.0,63878.0,0.79374]
[1721081405543,0.00183,63879.0,63878.0,0.78774]
[1721081407979,0.04435506,63879.0,63878.0,0.79474]
[1721081408678,0.00183,63879.0,63878.0,1.107836]
[1721081408893,0.00183,63879.0,63878.0,1.186836]
[1721081409470,0.06740942,63879.0,63878.0,1.186836]
[1721081412084,0.0675577,63879.0,63878.0,1.186836]
[1721081412703,0.06789511,63879.0,63878.0,1.186836]
[1721081414564,0.11042017,63879.0,63878.0,1.186836]
[1721081414764,0.16692842,63879.0,63878.0,1.186836]
[1721081415131,0.11042017,63879.0,63878.0,1.186836]
[1721081415335,0.04435506,63879.0,63878.0,1.186836]
[1721081415509,0.11061834,63879.0,63878.0,1.186836]
[1721081415754,0.21813718,63879.0,63878.0,1.186836]
[1721081416083,0.29918956,63879.0,63878.0,0.79474]
[1721081416287,0.35569781,63879.0,63878.0,0.019]
[1721081416511,0.35569781,63879.0,63878.0,0.175548]
[1721081416512,0.74526522,63879.0,63878.0,0.175548]
[1721081416689,0.76976522,63879.0,63878.0,0.019]
[1721081417059,1.67249222,63879.0,63878.0,0.019]
[1721081417172,2.03558322,63879.0,63878.0,0.01200034]
[1721081417377,1.55249222,63879.0,63878.0,0.01200034]
[1721081417615,1.67249222,63879.0,63878.0,0.01200034]
[1721081417816,1.55249222,63879.0,63878.0,0.01200034]
[1721081418017,0.76976522,63879.0,63878.0,0.01200034]
[1721081418219,0.76976522,63879.0,63878.0,0.00500034]
[1721081418569,1.65676211,63879.0,63878.0,0.00600034]
[1721081418915,1.65676211,63879.0,63878.0,0.00610034]
[1721081419309,1.34567111,63879.0,63878.0,0.0011]
[1721081419516,1.65876211,63879.0,63878.0,0.0011]
[1721081420782,1.67514481,63879.0,63878.0,0.0011]
[1721081421816,1.6754119,63879.0,63878.0,0.0011]
[1721081422169,1.3623209,63879.0,63878.0,0.0011]
[1721081422372,1.2423209,63879.0,63878.0,0.0011]
[1721081422574,1.3623209,63879.0,63878.0,0.0011]
[1721081424257,1.6754119,63879.0,63878.0,0.0011]
[1721081424680,1.6754119,63879.0,63878.0,0.002013]
[1721081424900,2.25062081,63879.0,63878.0,0.002013]
[1721081425117,3.18805274,63879.0,63878.0,0.00094214]
[1721081425316,0.24373331,63854.0,63853.0,0.00306353]
[1721081425442,0.24373331,63854.0,63853.0,0.15967253]
[1721081425443,0.13464816,63854.0,63853.0,0.15967253]
[1721081425643,0.20006926,63854.0,63853.0,0.47289153]
[1721081425848,0.20006926,63854.0,63853.0,0.78611053]
[1721081426047,0.20006926,63854.0,63853.0,0.783047]
[1721081426453,0.05650825,63855.0,63853.0,2.37602191]